[Event "Polish Youth Ekstraliga 2022"]
[Site "Lublin"]
[Date "2022.06.26"]
[Round "2.10"]
[White "Rekuc, Patryk"]
[Black "Kania, Franciszek"]
[Result "1/2-1/2"]
[ECO "E64"]
[WhiteElo "1842"]
[BlackElo "1523"]
[Annotator "NA RC"]
[PlyCount "62"]
[EventDate "2022.06.24"]
[EventType "team-tourn"]
[EventCountry "POL"]
[SourceTitle "playchess.com"]
[Source "ChessBase"]
[SourceQuality "1"]
[TimeControl "40/5400+30:1800+30"]

1. d4 {[%emt 0:00:02]} Nf6 {[%emt 0:00:27]} 2. c4 {[%emt 0:00:05]} g6 {[%emt 0:00:28]} 3. Nc3 {[%emt 0:00:05]} Bg7 {[%emt 0:00:09]} 4. Nf3 {[%emt 0:00:06]} O-O {[%emt 0:00:09]} 5. g3 {[%emt 0:00:06]} d6 {[%emt 0:02:19]} 6. Bg2 {[%emt 0:00:04]} c5 {[%emt 0:05:09]} 7. d5 {[%emt 0:00:08]} Na6 {[%emt 0:00:59]} 8. O-O {[%emt 0:01:10]} Nc7 {[%emt 0:00:17]} 9. a4 {[%emt 0:07:26]} b6 {[%emt 0:04:16]} 10. h3 {[%emt 0:07:34]} a6 {[%emt 0:01:26]} 11. e4 {[%emt 0:06:04]} Nd7 {[%emt 0:06:11]} 12. Qe2 {[%emt 0:01:13]} Rb8 {[%emt 0:02:47]} 13. Be3 {[%emt 0:06:08]} Ne5 {[%emt 0:08:47]} 14. Nxe5 {[%emt 0:04:13]} Bxe5 {[%emt 0:00:42]} 15. f4 {[%emt 0:00:40]} Bg7 {[%emt 0:00:44]} 16. Rae1 {[%emt 0:01:48]} b5 {[%emt 0:02:52]} 17. e5 {[%emt 0:02:39]} bxc4 {[%emt 0:02:30]} 18. Qxc4 {[%emt 0:07:17]} a5 {[%emt 0:04:21]} 19. Rf2 {[%emt 0:01:04]} Rb4 {[%emt 0:01:55]} 20. Qe2 {[%emt 0:00:31]} Na6 {[%emt 0:04:30]} 21. Bc1 {[%emt 0:13:35]} c4 {[%emt 0:02:40]} 22. Na2 {[%emt 0:05:37]} Rxa4 {[%emt 0:03:05]} 23. Nc3 {[%emt 0:00:05]} Rb4 {[%emt 0:00:35]} 24. Na2 {[%emt 0:00:04]} Ra4 {[%emt 0:02:04]} 25. Nc3 {[%emt 0:00:04]} Rb4 {[%emt 0:00:20]} 26. Na2 {[%emt 0:00:04]} Ra4 {[%emt 0:00:05]} 27. Nc3 {[%emt 0:00:03]} Rb4 {[%emt 0:00:17]} 28. Na2 {[%emt 0:00:04]} Ra4 {[%emt 0:00:16]} 29. Nc3 Rb4 30. Na2 Ra4 31. Nc3 {[%emt 0:01:39]} Rb4 {[%emt 0:01:30]} 1/2-1/2

[Event "Polish Youth Ekstraliga 2022"]
[Site "Lublin"]
[Date "2022.06.26"]
[Round "2.11"]
[White "Dylag, Emilia"]
[Black "Marcinczyk, Monika"]
[Result "0-1"]
[ECO "A62"]
[WhiteElo "2022"]
[BlackElo "1991"]
[Annotator "RC"]
[PlyCount "134"]
[EventDate "2022.06.24"]
[EventType "team-tourn"]
[EventCountry "POL"]
[SourceTitle "playchess.com"]
[Source "ChessBase"]
[SourceQuality "1"]
[TimeControl "40/5400+30:1800+30"]

1. d4 {[%emt 0:00:03]} Nf6 {[%emt 0:00:07]} 2. c4 {[%emt 0:00:10]} e6 {[%emt 0:00:06]} 3. g3 {[%emt 0:00:12]} c5 {[%emt 0:00:08]} 4. d5 {[%emt 0:00:07]} exd5 {[%emt 0:00:10]} 5. cxd5 {[%emt 0:00:07]} d6 {[%emt 0:00:05]} 6. Nc3 {[%emt 0:00:10]} g6 {[%emt 0:00:10]} 7. Bg2 {[%emt 0:00:13]} Bg7 {[%emt 0:00:07]} 8. Nf3 {[%emt 0:00:07]} O-O {[%emt 0:00:11]} 9. O-O {[%emt 0:00:06]} Re8 {[%emt 0:00:12]} 10. Bf4 {[%emt 0:00:12]} Ne4 {[%emt 0:00:15]} 11. Nxe4 {[%emt 0:01:43]} Rxe4 {[%emt 0:00:08]} 12. Nd2 {[%emt 0:01:07]} Rxf4 {[%emt 0:00:13]} 13. gxf4 {[%emt 0:00:05]} Bxb2 {[%emt 0:00:08]} 14. Rb1 {[%emt 0:00:26]} Bg7 {[%emt 0:00:11]} 15. Qb3 {[%emt 0:08:05]} Bh6 {[%emt 0:17:12]} 16. Qg3 {[%emt 0:10:17]} Nd7 {[%emt 0:04:52]} 17. Rfe1 {[%emt 0:08:38]} a6 {[%emt 0:13:25]} 18. Ne4 {[%emt 0:26:29]} Nf6 {[%emt 0:04:46]} 19. Qh4 {[%emt 0:01:46]} Bg7 {[%emt 0:00:41]} 20. Nd2 {[%emt 0:06:15]} b5 {[%emt 0:04:11]} 21. e4 {[%emt 0:00:33]} Bb7 {[%emt 0:01:27]} 22. Nc4 {[%emt 0:21:39]} Rb8 {[%emt 0:13:19]} 23. Ne3 {[%emt 0:02:28]} Nh5 {[%emt 0:04:40]} 24. Qg4 {[%emt 0:03:14]} Bh6 {[%emt 0:09:53]} 25. e5 {[%emt 0:01:59]} Bxf4 {[%emt 0:03:48]} 26. e6 {[%emt 0:00:52]} Qf6 {[%emt 0:04:56]} 27. e7 {[%emt 0:05:05]} Qxe7 {[%emt 0:01:25]} 28. Nf5 {[%emt 0:00:13]} Qd8 {[%emt 0:03:09]} 29. Ne7+ {[%emt 0:00:28]} Kf8 {[%emt 0:01:21]} 30. Rb3 {[%emt 0:01:21]} Be5 {[%emt 0:01:13]} 31. Nc6 {[%emt 0:00:36]} Bxc6 {[%emt 0:00:35]} 32. dxc6 {[%emt 0:00:05]} Qc7 {[%emt 0:02:44]} 33. Rbe3 {[%emt 0:01:18]} Nf4 {[%emt 0:03:57]} 34. Bh1 {[%emt 0:00:22]} Rd8 {[%emt 0:01:23]} 35. Qh4 {[%emt 0:00:35]} Kg7 {[%emt 0:00:55]} 36. Rf3 {[%emt 0:00:38]} Nh5 {[%emt 0:03:09]} 37. Rfe3 {[%emt 0:00:25]} Bf6 {[%emt 0:00:52]} 38. Qg4 {[%emt 0:00:47]} d5 {[%emt 0:00:22]} 39. Re8 {[%emt 0:00:27]} Qxc6 {[%emt 0:00:39]} 40. Rxd8 {[%emt 0:00:00]} Bxd8 {[%emt 0:00:00]} 41. Rd1 {[%emt 0:00:34]} Nf6 {[%emt 0:00:45]} 42. Qg5 {[%emt 0:00:26]} h6 {[%emt 0:00:37]} 43. Bxd5 {[%emt 0:01:48]} Qd7 {[%emt 0:03:35]} 44. Qg2 {[%emt 0:01:24]} Bc7 {[%emt 0:06:09]} 45. Qf3 {[%emt 0:05:41]} Qd6 {[%emt 0:01:57]} 46. Bxf7 {[%emt 0:02:52]} Qxh2+ {[%emt 0:01:32]} 47. Kf1 {[%emt 0:00:05]} Kxf7 {[%emt 0:00:36]} 48. Rd7+ {[%emt 0:00:22]} Ke6 {[%emt 0:01:54]} 49. Rd1 {[%emt 0:02:10]} Be5 {[%emt 0:05:04]} 50. Qc6+ {[%emt 0:02:40]} Kf5 {[%emt 0:00:12]} 51. Rd3 {[%emt 0:02:06]} Qh4 {[%emt 0:04:10]} 52. Qc8+ {[%emt 0:10:21]} Kg5 {[%emt 0:01:33]} 53. Qxc5 {[%emt 0:00:39]} Qh1+ {[%emt 0:02:11]} 54. Ke2 {[%emt 0:00:07]} Kf4 {[%emt 0:01:25]} 55. Qe3+ {[%emt 0:04:38]} Kf5 {[%emt 0:00:08]} 56. Ra3 {[%emt 0:01:05]} Qe4 {[%emt 0:03:04]} 57. Rxa6 {[%emt 0:01:16]} Qxe3+ {[%emt 0:00:10]} 58. Kxe3 {[%emt 0:00:20]} Nd5+ {[%emt 0:00:11]} 59. Kf3 {[%emt 0:00:16]} Nc3 {[%emt 0:00:37]} 60. Kg2 {[%emt 0:01:27]} h5 {[%emt 0:00:40]} 61. Kh3 {[%emt 0:00:31]} g5 {[%emt 0:00:31]} 62. Ra8 {[%emt 0:00:22]} Ke4 {[%emt 0:01:20]} 63. Rg8 {[%emt 0:00:55]} Bf4 {[%emt 0:00:33]} 64. Ra8 {[%emt 0:00:26]} Kd3 {[%emt 0:01:20]} 65. Kg2 {[%emt 0:00:25]} b4 {[%emt 0:00:13]} 66. Ra7 {[%emt 0:00:28]} Kc2 {[%emt 0:00:13]} 67. Rh7 {[%emt 0:00:32]} h4 {[%emt 0:00:29]} 0-1

[Event "Polish Youth Ekstraliga 2022"]
[Site "Lublin"]
[Date "2022.06.26"]
[Round "2.12"]
[White "Szczotka, Klara"]
[Black "Bandyk, Joanna"]
[Result "1-0"]
[ECO "C43"]
[WhiteElo "1863"]
[BlackElo "1360"]
[Annotator "NA RC"]
[PlyCount "91"]
[EventDate "2022.06.24"]
[EventType "team-tourn"]
[EventCountry "POL"]
[SourceTitle "playchess.com"]
[Source "ChessBase"]
[SourceQuality "1"]
[TimeControl "40/5400+30:1800+30"]

1. e4 {[%emt 0:00:02]} e5 {[%emt 0:00:05]} 2. Nf3 {[%emt 0:00:05]} Nf6 {[%emt 0:00:06]} 3. d4 {[%emt 0:03:04]} exd4 {[%emt 0:02:38]} 4. e5 {[%emt 0:00:10]} Bb4+ {[%emt 0:03:16]} 5. c3 {[%emt 0:03:22]} dxc3 {[%emt 0:03:44]} 6. bxc3 {[%emt 0:01:33]} Bc5 {[%emt 0:00:32]} 7. exf6 {[%emt 0:01:13]} Qxf6 {[%emt 0:00:40]} 8. Be2 {[%emt 0:00:35]} O-O {[%emt 0:01:01]} 9. O-O {[%emt 0:00:09]} Nc6 {[%emt 0:01:49]} 10. Qd5 {[%emt 0:01:01]} d6 {[%emt 0:05:52]} 11. Bg5 {[%emt 0:01:01]} Qe6 {[%emt 0:02:17]} 12. Bc4 {[%emt 0:01:14]} Ne5 {[%emt 0:11:49]} 13. Nxe5 {[%emt 0:00:36]} Qxd5 {[%emt 0:01:26]} 14. Bxd5 {[%emt 0:00:05]} dxe5 {[%emt 0:00:08]} 15. Nd2 {[%emt 0:01:26]} h6 {[%emt 0:00:47]} 16. Bh4 {[%emt 0:01:04]} g5 {[%emt 0:02:12]} 17. Ne4 {[%emt 0:00:38]} Rd8 {[%emt 0:03:21]} 18. Bb3 {[%emt 0:00:19]} Be7 {[%emt 0:02:59]} 19. Bg3 {[%emt 0:00:13]} Bf5 {[%emt 0:00:45]} 20. f3 {[%emt 0:01:55]} c6 {[%emt 0:07:21]} 21. Bxe5 {[%emt 0:01:23]} Kf8 {[%emt 0:03:46]} 22. Rad1 {[%emt 0:00:32]} Rd7 {[%emt 0:08:41]} 23. Rxd7 {[%emt 0:00:18]} Bxd7 {[%emt 0:00:09]} 24. Rd1 {[%emt 0:00:06]} Be6 {[%emt 0:02:35]} 25. Bxe6 {[%emt 0:00:54]} fxe6 {[%emt 0:02:39]} 26. Rd7 {[%emt 0:00:20]} b6 {[%emt 0:02:07]} 27. Bd6 {[%emt 0:00:32]} Bxd6 {[%emt 0:01:17]} 28. Rxd6 {[%emt 0:00:09]} c5 29. Rxe6 {[%emt 0:00:10]} Kg7 {[%emt 0:01:23]} 30. Kf2 {[%emt 0:00:08]} Rf8 {[%emt 0:00:53]} 31. Re7+ {[%emt 0:00:07]} Rf7 {[%emt 0:00:08]} 32. Rxf7+ {[%emt 0:00:05]} Kxf7 {[%emt 0:00:15]} 33. Ke3 {[%emt 0:00:23]} Ke6 {[%emt 0:00:10]} 34. c4 {[%emt 0:00:10]} Ke5 {[%emt 0:00:45]} 35. g3 {[%emt 0:00:06]} Ke6 {[%emt 0:01:16]} 36. f4 {[%emt 0:00:13]} g4 {[%emt 0:01:44]} 37. Nf2 {[%emt 0:00:25]} Kf5 {[%emt 0:00:18]} 38. a4 {[%emt 0:00:05]} a6 {[%emt 0:00:27]} 39. Kd3 {[%emt 0:00:19]} a5 {[%emt 0:00:19]} 40. Ke3 {[%emt 0:00:00]} h5 {[%emt 0:00:00]} 41. Kd3 {[%emt 0:00:12]} h4 {[%emt 0:00:57]} 42. Ke3 {[%emt 0:00:04]} hxg3 {[%emt 0:00:04]} 43. hxg3 {[%emt 0:00:03]} Kf6 {[%emt 0:00:21]} 44. Ke4 {[%emt 0:00:09]} Ke6 {[%emt 0:00:05]} 45. f5+ {[%emt 0:00:04]} Kf6 {[%emt 0:00:05]} 46. Nxg4+ {[%emt 0:00:04]} 1-0

[Event "Polish Youth Ekstraliga 2022"]
[Site "Lublin"]
[Date "2022.06.26"]
[Round "2.13"]
[White "Niedbala, Bartlomiej"]
[Black "Dzida, Kamil"]
[Result "1/2-1/2"]
[ECO "B96"]
[WhiteElo "2384"]
[BlackElo "2294"]
[Annotator "TA"]
[PlyCount "81"]
[EventDate "2022.06.24"]
[EventType "team-tourn"]
[EventCountry "POL"]
[SourceTitle "playchess.com"]
[Source "ChessBase"]
[SourceQuality "1"]
[TimeControl "40/5400+30:1800+30"]

{[%evp 15,81,19,23,0,0,0,0,0,12,12,12,12,12,12,8,15,10,17,13,20,16,0,0,0,0,0,0,-45,-38,-62,-3,-16,0,0,0,-20,-29,-27,-22,-97,-95,-102,-116,-91,-94,-79,-90,-90,-56,-92,-58,-47,-42,-70,-69,-215,-114,-191,-19,-24,0,0,0,0,0,0,0,0]} 1. e4 {[%emt 0:00:46]} c5 {[%emt 0:00:06]} 2. Nf3 {[%emt 0:00:05]} d6 {[%emt 0:00:05]} 3. d4 {[%emt 0:00:05]} cxd4 {[%emt 0:00:05]} 4. Nxd4 {[%emt 0:00:04]} Nf6 {[%emt 0:00:07]} 5. Nc3 {[%emt 0:00:05]} a6 {[%emt 0:00:04]} 6. Bg5 {[%emt 0:00:04]} e6 {[%emt 0:00:05]} 7. f4 {[%emt 0:00:05]} h6 {[%emt 0:00:04]} 8. Bh4 {[%emt 0:00:04]} Qb6 {[%emt 0:00:05]} 9. Qd2 {[%emt 0:09:15] B96: Sicilian Najdorf: 6 Bg5 e6 7 f4, lines other than 7...Qb6 and 7...Be7.} Qxb2 {[%emt 0:01:14]} 10. Rb1 {[%emt 0:01:21]} Qa3 {[%emt 0:00:02]} 11. f5 {[%emt 0:00:04]} Be7 {[%emt 0:01:09] White must now prevent ...0-0.} 12. fxe6 {[%emt 0:00:38]} fxe6 {[%emt 0:00:08] ...0-0 is the strong threat.} 13. Bc4 $1 {[%emt 0:00:18][%cal Bf1c4,Bc4e6,Be6f7][%mdl 32]} Nxe4 $1 {[%emt 0:00:19]} 14. Nxe4 {[%emt 0:00:08]} Bxh4+ {[%emt 0:00:05]} 15. g3 {[%emt 0:00:04]} Bg5 {[%emt 0:00:21]} 16. Nxg5 {[%emt 0:00:05]} hxg5 {[%emt 0:00:09]} 17. O-O {[%emt 0:00:09]} (17. Nxe6 Bxe6 18. Bxe6 {[#]} (18. Rb3 $2 Qa4 $19) 18... Qxg3+ $1 19. hxg3 Rxh1+ 20. Kf2 Rh2+ 21. Ke3 Rxd2 22. Kxd2 Ra7 $15) 17... Qc5 {[%emt 0:06:42] [#]} 18. Bxe6 $146 {[%emt 0:04:05]} ({Predecessor:} 18. Qf2 Nc6 19. Nxe6 Qxf2+ 20. Rxf2 Bxe6 21. Bxe6 Rb8 22. Bd5 Ne5 23. Bxb7 Ke7 24. Rb3 {½-½ (32) Ortiz Suarez,I (2577)-Vachier Lagrave,M (2744) Baku 2015}) 18... Nc6 {[%emt 0:06:39]} 19. Bf7+ $1 {[%emt 0:09:47]} ({Don't go for} 19. Bxc8 $2 Nxd4 20. Qb4 Rxc8 $19) 19... Kd8 {[%emt 0:01:10]} 20. c3 {[%emt 0:00:23]} Kc7 {[%emt 0:02:21]} 21. Rf2 {[%emt 0:15:38]} (21. Kh1 $5 {[%cal Rf7e6]}) 21... Rf8 $1 {[%emt 0:08:06]} 22. Rd1 {[%emt 0:34:40]} Ne5 {[%emt 0:12:29]} ({Better is} 22... Bg4 $15) 23. Qxg5 $11 {[%emt 0:04:03]} Nf3+ {[%emt 0:06:07]} 24. Nxf3 {[%emt 0:00:12] The board is on fire.} Rxf7 {[%emt 0:00:03]} 25. Rd5 {[%emt 0:02:44] Active counter play!} Qb6 {[%emt 0:01:05]} 26. Rd4 {[%emt 0:02:53]} Bd7 {[%emt 0:01:30] Hoping for ...Raf8.} 27. Rb4 {[%emt 0:04:10]} (27. Nd2 $11 {keeps the balance.} Rxf2 28. Kxf2) 27... Qc5 $40 {[%emt 0:01:55][%mdl 128] Black is out for blood.} ({Don't play} 27... Bb5 28. Nd4 Rxf2 29. Qxg7+ (29. Kxf2 Qc5 $16) 29... Kb8 30. Kxf2 $16) 28. Rf4 {[%emt 0:01:52]} Rxf4 {[%emt 0:02:41]} 29. Qxc5+ {[%emt 0:00:03]} dxc5 {[%emt 0:00:13]} 30. gxf4 {[%emt 0:00:02][%mdl 4096] Endgame KRB-KRN} Bc6 {[%emt 0:06:17]} 31. Ne5 {[%emt 0:00:59]} Rd8 {[%emt 0:00:07]} 32. Re2 {[%emt 0:01:23]} Rd1+ {[%emt 0:10:06]} 33. Kf2 {[%emt 0:00:01]} Bd5 {[%emt 0:00:11]} 34. Ke3 {[%emt 0:03:16]} b5 {[%emt 0:01:27] Inhibits c4.} 35. f5 {[%emt 0:01:22]} (35. a4 $1 $15) 35... Rc1 {[%emt 0:05:12]} ({Black should play} 35... Kd6 $19 36. Ng4 Rc1) 36. Kf4 {[%emt 0:00:32]} (36. c4 $17 bxc4 37. Kd2) 36... Rxc3 $2 {[%emt 0:01:09]} (36... Kd6 $19 37. Ng4 Rxc3) 37. Rd2 $11 {[%emt 0:00:40]} Kd6 {[%emt 0:00:51] Strongly threatening ...c4.} (37... Bc6 $5) 38. Nf7+ $1 {[%emt 0:00:44] The position is equal.} Ke7 {[%emt 0:01:39]} 39. Ne5 {[%emt 0:01:09]} Kd6 {[%emt 0:02:36] And now ...c4 would win.} 40. Nf7+ $1 {[%emt 0:00:00]} Ke7 {[%emt 0:00:00]} 41. Ne5 $1 {[%emt 0:01:32] Prevents Rc4+.  Weighted Error Value: White=0.20 (precise) /Black=0.25 (precise)} 1/2-1/2

[Event "Polish Youth Ekstraliga 2022"]
[Site "Lublin"]
[Date "2022.06.26"]
[Round "2.14"]
[White "Koziorowicz, Michal"]
[Black "Redzisz, Michal"]
[Result "1-0"]
[ECO "B12"]
[WhiteElo "2231"]
[BlackElo "2236"]
[Annotator "RC"]
[PlyCount "79"]
[EventDate "2022.06.24"]
[EventType "team-tourn"]
[EventCountry "POL"]
[SourceTitle "playchess.com"]
[Source "ChessBase"]
[SourceQuality "1"]
[TimeControl "40/5400+30:1800+30"]

1. e4 {[%emt 0:00:08]} c6 {[%emt 0:00:17]} 2. d4 {[%emt 0:00:17]} d5 {[%emt 0:00:04]} 3. e5 {[%emt 0:00:52]} Bf5 {[%emt 0:00:07]} 4. Nc3 {[%emt 0:01:30]} e6 {[%emt 0:00:09]} 5. g4 {[%emt 0:00:07]} Bg6 {[%emt 0:00:02]} 6. Nge2 {[%emt 0:00:08]} c5 {[%emt 0:00:02]} 7. h4 {[%emt 0:00:39]} h5 {[%emt 0:00:03]} 8. Nf4 {[%emt 0:00:07]} Bh7 {[%emt 0:00:02]} 9. g5 {[%emt 0:00:08]} Bf5 {[%emt 0:07:48]} 10. Nxh5 {[%emt 0:23:20]} Nc6 {[%emt 0:48:26]} 11. Ng3 {[%emt 0:10:39]} cxd4 {[%emt 0:06:41]} 12. Nb5 {[%emt 0:06:09]} Bc5 {[%emt 0:00:08]} 13. Nxf5 {[%emt 0:01:48]} exf5 {[%emt 0:00:26]} 14. Bf4 {[%emt 0:09:08]} Kf8 {[%emt 0:03:37]} 15. Qf3 {[%emt 0:04:04]} a6 {[%emt 0:14:49]} 16. Nd6 {[%emt 0:00:51]} Nxe5 {[%emt 0:02:57]} 17. Bxe5 {[%emt 0:00:14]} Bxd6 {[%emt 0:00:08]} 18. Bxd4 {[%emt 0:00:31]} Qe7+ {[%emt 0:01:45]} 19. Qe3 {[%emt 0:13:12]} Qc7 {[%emt 0:08:55]} 20. Qc3 {[%emt 0:01:11]} Re8+ {[%emt 0:00:01]} 21. Be2 {[%emt 0:01:07]} Qxc3+ {[%emt 0:00:58]} 22. Bxc3 {[%emt 0:01:02]} Bf4 {[%emt 0:01:15]} 23. Bb4+ {[%emt 0:02:02]} Ne7 {[%emt 0:00:04]} 24. Bf3 {[%emt 0:03:35]} Kg8 {[%emt 0:01:06]} 25. Kf1 {[%emt 0:00:46]} Nc6 {[%emt 0:02:17]} 26. Bc5 {[%emt 0:01:25]} d4 {[%emt 0:00:34]} 27. Kg2 {[%emt 0:01:13]} Kh7 {[%emt 0:00:44]} 28. Rad1 {[%emt 0:06:00]} Kg6 {[%emt 0:00:28]} 29. b3 {[%emt 0:00:43]} f6 {[%emt 0:00:29]} 30. gxf6 {[%emt 0:00:55]} gxf6 {[%emt 0:00:23]} 31. Bxc6 {[%emt 0:00:32]} bxc6 {[%emt 0:00:02]} 32. Rxd4 {[%emt 0:00:28]} Re4 {[%emt 0:00:06]} 33. Rd7 {[%emt 0:00:31]} Be5 {[%emt 0:01:31]} 34. Be3 {[%emt 0:02:05]} f4 {[%emt 0:00:20]} 35. Kf3 {[%emt 0:00:27]} Kf5 {[%emt 0:00:12]} 36. Bc5 {[%emt 0:00:41]} Rh5 {[%emt 0:00:33]} 37. Re7 {[%emt 0:00:52]} a5 {[%emt 0:00:12]} 38. a4 {[%emt 0:00:05]} Rd4 {[%emt 0:01:18]} 39. Bxd4 {[%emt 0:00:20]} Bxd4 {[%emt 0:00:01]} 40. Re4 {[%emt 0:00:00]} 1-0

[Event "Polish Youth Ekstraliga 2022"]
[Site "Lublin"]
[Date "2022.06.26"]
[Round "2.15"]
[White "Warchol, Kamil"]
[Black "Raczek, Krzysztof"]
[Result "1/2-1/2"]
[ECO "B67"]
[WhiteElo "2079"]
[BlackElo "2114"]
[Annotator "NA RC"]
[PlyCount "65"]
[EventDate "2022.06.24"]
[EventType "team-tourn"]
[EventCountry "POL"]
[SourceTitle "playchess.com"]
[Source "ChessBase"]
[SourceQuality "1"]
[TimeControl "40/5400+30:1800+30"]

1. e4 {[%emt 0:00:02]} c5 {[%emt 0:00:00]} 2. Nf3 {[%emt 0:00:06]} d6 {[%emt 0:00:04]} 3. d4 {[%emt 0:00:04]} cxd4 {[%emt 0:00:02]} 4. Nxd4 {[%emt 0:00:04]} Nf6 {[%emt 0:00:05]} 5. Nc3 {[%emt 0:00:04]} Nc6 {[%emt 0:00:04]} 6. Bg5 {[%emt 0:00:12]} e6 {[%emt 0:00:05]} 7. Qd2 {[%emt 0:00:37]} a6 8. O-O-O {[%emt 0:00:51]} Bd7 {[%emt 0:00:21]} 9. f4 {[%emt 0:00:57]} b5 {[%emt 0:00:07]} 10. Bxf6 {[%emt 0:00:35]} gxf6 {[%emt 0:00:05]} 11. Kb1 {[%emt 0:00:30]} b4 {[%emt 0:01:10]} 12. Nce2 {[%emt 0:01:17]} Qb6 {[%emt 0:00:06]} 13. Nxc6 {[%emt 0:01:50]} Bxc6 {[%emt 0:00:06]} 14. f5 {[%emt 0:00:05]} e5 {[%emt 0:00:03]} 15. Ng3 {[%emt 0:00:59]} h5 {[%emt 0:00:10]} 16. h4 {[%emt 0:05:01]} Qc5 {[%emt 0:00:17]} 17. Bd3 {[%emt 0:03:07]} Bh6 {[%emt 0:00:10]} 18. Qe2 {[%emt 0:04:17]} Qe3 {[%emt 0:00:21]} 19. Nxh5 {[%emt 0:04:48]} Ke7 {[%emt 0:00:50]} 20. Qf1 {[%emt 0:08:48]} Bxe4 {[%emt 0:01:08]} 21. Rg1 {[%emt 0:14:32]} b3 {[%emt 0:09:35]} 22. axb3 {[%emt 0:06:03]} Rac8 {[%emt 0:02:59]} 23. g4 {[%emt 0:06:48]} Rxc2 {[%emt 0:57:44]} 24. Rg3 {[%emt 0:10:46]} Bxd3 {[%emt 0:09:44]} 25. Qxd3 {[%emt 0:00:59]} Qxd3 {[%emt 0:03:47]} 26. Rgxd3 {[%emt 0:03:44]} Rc6 {[%emt 0:00:38]} 27. Rg1 {[%emt 0:08:26]} Rg8 {[%emt 0:02:29]} 28. Rdg3 {[%emt 0:01:30]} Rh8 {[%emt 0:02:18]} 29. Rd3 {[%emt 0:06:52]} Rg8 {[%emt 0:04:44]} 30. Rdg3 {[%emt 0:01:12]} Rh8 {[%emt 0:00:23]} 31. Rd3 {[%emt 0:01:32]} Rg8 {[%emt 0:00:05]} 32. Rdg3 {[%emt 0:02:26]} Rh8 {[%emt 0:00:04]} 33. Rd3 {[%emt 0:01:27]} 1/2-1/2

[Event "Polish Youth Ekstraliga 2022"]
[Site "Lublin"]
[Date "2022.06.26"]
[Round "2.16"]
[White "Grzebieniowski, Michal"]
[Black "Krol, Jan"]
[Result "1/2-1/2"]
[ECO "E11"]
[WhiteElo "1635"]
[BlackElo "1668"]
[Annotator "NA RC"]
[PlyCount "62"]
[EventDate "2022.06.24"]
[EventType "team-tourn"]
[EventCountry "POL"]
[SourceTitle "playchess.com"]
[Source "ChessBase"]
[SourceQuality "1"]
[TimeControl "40/5400+30:1800+30"]

1. d4 {[%emt 0:00:02]} Nf6 {[%emt 0:00:03]} 2. c4 {[%emt 0:00:05]} e6 {[%emt 0:00:01]} 3. Nf3 {[%emt 0:00:07]} Bb4+ {[%emt 0:00:08]} 4. Nbd2 {[%emt 0:00:05]} Qe7 {[%emt 0:00:55]} 5. a3 {[%emt 0:01:14]} Bxd2+ {[%emt 0:00:45]} 6. Qxd2 {[%emt 0:00:18]} a5 {[%emt 0:03:14]} 7. b3 {[%emt 0:01:04]} d6 {[%emt 0:02:38]} 8. Bb2 {[%emt 0:00:50]} Nbd7 {[%emt 0:00:44]} 9. e3 {[%emt 0:02:25]} b6 {[%emt 0:04:51]} 10. g3 {[%emt 0:03:29]} Bb7 {[%emt 0:04:00]} 11. Bg2 {[%emt 0:00:15]} Ne4 {[%emt 0:00:14]} 12. Qe2 {[%emt 0:00:51]} f5 {[%emt 0:00:08]} 13. O-O {[%emt 0:00:07]} O-O {[%emt 0:11:21]} 14. b4 {[%emt 0:06:38]} Ra7 {[%emt 0:14:35]} 15. Rfc1 {[%emt 0:03:21]} c5 {[%emt 0:03:45]} 16. Qe1 {[%emt 0:07:10]} Ndf6 {[%emt 0:09:37]} 17. h3 {[%emt 0:10:49]} Rfa8 {[%emt 0:05:18]} 18. Rd1 {[%emt 0:11:40]} axb4 {[%emt 0:02:36]} 19. axb4 {[%emt 0:02:43]} Ra2 {[%emt 0:00:08]} 20. Rdb1 {[%emt 0:01:10]} R8a4 {[%emt 0:13:54]} 21. bxc5 {[%emt 0:05:04]} bxc5 {[%emt 0:00:14]} 22. dxc5 {[%emt 0:04:43]} Nxc5 {[%emt 0:01:48]} 23. Bd4 {[%emt 0:05:03]} Nfe4 {[%emt 0:07:16]} 24. Rxa2 {[%emt 0:01:08]} Rxa2 {[%emt 0:00:02]} 25. Qb4 {[%emt 0:00:23]} Rxf2 {[%emt 0:01:35]} 26. Ne1 {[%emt 0:01:00]} Qg5 {[%emt 0:03:44]} 27. Qb5 {[%emt 0:01:06]} Rxg2+ {[%emt 0:01:23]} 28. Nxg2 {[%emt 0:00:12]} h6 {[%emt 0:00:08]} 29. Qe8+ {[%emt 0:02:00]} Kh7 {[%emt 0:00:01]} 30. Qf7 {[%emt 0:03:33]} Qxg3 {[%emt 0:01:22]} 31. Rxb7 {[%emt 0:00:10]} Qf2+ 1/2-1/2